[Event "LV Capablanca Memorial Elite 2022"]
[Site "La Habana"]
[Date "2022.04.21"]
[Round "3.1"]
[White "Quesada Perez, Yasser"]
[Black "Yilmaz, Mustafa"]
[Result "1/2-1/2"]
[ECO "D46"]
[WhiteElo "2568"]
[BlackElo "2627"]
[Annotator "TA"]
[PlyCount "55"]
[EventDate "2022.04.20"]
[EventType "tourn"]
[EventCountry "CUB"]
[SourceTitle "playchess.com"]
[Source "ChessBase"]
[SourceQuality "1"]
[TimeControl "40/5400+30:1800+30"]

{[%evp 20,55,29,12,16,-8,0,0,0,0,0,0,0,0,-2,-18,0,-17,10,10,22,27,25,19,25,10,8,8,6,4,65,13,24,17,20,6,28,33]} 1. d4 {[%emt 0:00:04]} d5 {[%emt 0:00:09]} 2. c4 {[%emt 0:00:11]} e6 {[%emt 0:00:05]} 3. Nf3 {[%emt 0:00:48]} Nf6 {[%emt 0:00:10]} 4. Nc3 {[%emt 0:00:29]} c6 {[%emt 0:00:06]} 5. e3 {[%emt 0:04:04]} Nbd7 {[%emt 0:00:15]} 6. Qc2 {[%emt 0:00:07]} Bd6 {[%emt 0:00:08]} 7. Bd3 {[%emt 0:02:01]} O-O {[%emt 0:00:21]} 8. O-O {[%emt 0:00:05]} dxc4 {[%emt 0:00:04]} 9. Bxc4 {[%emt 0:00:06]} b5 {[%emt 0:00:03]} 10. Be2 {[%emt 0:00:05]} Bb7 {[%emt 0:00:03]} 11. Rd1 {[%emt 0:00:43]} Be7 {[%emt 0:00:08] D46: Semi-Slav: 5 e3 Nbd7 6 Bd3, Black avoids the Meran.} 12. e4 {[%emt 0:05:08] [#]} b4 $146 {[%emt 0:00:23]} ({Predecessor:} 12... a6 13. e5 Nd5 14. Nxd5 cxd5 15. Bd3 h6 16. Qe2 Re8 {½-½ (15) Jurisic,I (1766)-Vujicic,D (1916) Veliko Gradiste 2021}) 13. e5 {[%emt 0:00:06]} bxc3 {[%emt 0:04:37] The position is equal.} 14. exf6 {[%emt 0:00:24]} Nxf6 {[%emt 0:01:28]} 15. Qxc3 {[%emt 0:00:52]} Qb6 {[%emt 0:05:46]} 16. Ne5 {[%emt 0:10:57][%cal Bf3e5,Be5c4,Bc4d6][%mdl 32]} c5 {[%emt 0:02:46]} 17. Nc4 {[%emt 0:10:00]} Qa6 {[%emt 0:10:47]} 18. Be3 {[%emt 0:14:17]} Rac8 {[%emt 0:01:10]} 19. dxc5 {[%emt 0:11:17] Hoping for b4.} Bxc5 {[%emt 0:02:07] [#]} 20. Nd6 $1 {[%emt 0:05:27]} Qxe2 {[%emt 0:03:26]} 21. Bxc5 {[%emt 0:00:08]} Ne4 $1 {[%emt 0:20:16]} 22. Nxe4 {[%emt 0:02:05]} Qxe4 {[%emt 0:01:54][%csl Gb7][%cal Re4g2]} 23. f3 {[%emt 0:00:06] Active counter play!} Qg6 $132 {[%emt 0:04:56][%cal Ob7f3][%mdl 2048] Black is fighting back} 24. b4 {[%emt 0:00:06]} Rfe8 {[%emt 0:04:43]} ({Black should try} 24... a6 $11) 25. Qd3 {[%emt 0:13:20]} (25. Rd7 $14 Bc6 26. Rxa7) 25... a5 {[%emt 0:00:59]} 26. Qxg6 {[%emt 0:00:15]} hxg6 {[%emt 0:00:04]} 27. a3 {[%emt 0:00:31]} Bd5 {[%emt 0:01:08]} 28. h4 {[%emt 0:01:57] Weighted Error Value: White=0.11 (very precise) /Black=0.15 (very precise)} 1/2-1/2

[Event "LV Capablanca Memorial Elite 2022"]
[Site "La Habana"]
[Date "2022.04.21"]
[Round "3.2"]
[White "Albornoz Cabrera, Carlos Daniel"]
[Black "Ganguly, Surya Shekhar"]
[Result "0-1"]
[ECO "C70"]
[WhiteElo "2567"]
[BlackElo "2627"]
[Annotator "TA"]
[PlyCount "112"]
[EventDate "2022.04.20"]
[EventType "tourn"]
[EventCountry "CUB"]
[SourceTitle "playchess.com"]
[Source "ChessBase"]
[SourceQuality "1"]
[TimeControl "40/5400+30:1800+30"]

{[%evp 15,112,61,63,57,44,56,65,52,69,25,10,8,18,12,54,-38,-32,-48,-10,-29,-11,-43,-38,-24,-30,-54,-56,-62,-56,-50,-67,-50,0,0,0,-43,-27,-59,-23,-10,0,0,0,0,38,0,0,0,0,0,0,0,0,0,58,-19,55,23,105,75,88,33,72,0,0,0,0,-8,0,-8,-16,-251,-81,-379,-357,-309,-268,-625,-602,-582,-527,-410,0,-638,-652,-618,-591,-1313,-1105,-1203,-1148,-1511,-1432,-1308,-1295,-12834,-5927,-1557,-1314]} 1. e4 {[%emt 0:00:06]} e5 {[%emt 0:00:51]} 2. Nf3 {[%emt 0:00:06]} Nc6 {[%emt 0:00:05]} 3. Bb5 {[%emt 0:00:04]} a6 {[%emt 0:00:07]} 4. Ba4 {[%emt 0:00:06]} f5 {[%emt 0:00:07]} 5. d4 {[%emt 0:11:52]} exd4 {[%emt 0:00:10]} 6. e5 {[%emt 0:02:37]} b5 {[%emt 0:00:07]} 7. Bb3 {[%emt 0:00:12]} Bb7 {[%emt 0:00:09]} 8. O-O {[%emt 0:06:59]} Na5 $1 {[%emt 0:00:10]} 9. Nxd4 {[%emt 0:02:11]} c5 {[%emt 0:00:06]} 10. Nxf5 {[%emt 0:07:25]} c4 {[%emt 0:00:09]} 11. Re1 {[%emt 0:03:39]} Qb6 $1 {[%emt 0:00:10]} (11... cxb3 $2 12. axb3 Qb6 13. Qh5+ Qg6 14. Qxg6+ (14. Nd6+ Bxd6 15. Qxg6+ hxg6 $16) 14... hxg6 15. Nd6+ Bxd6 16. exd6+ Kf7 17. Rxa5 $16) 12. Nd6+ {[%emt 0:13:14]} (12. Be3 Qg6 13. g4 (13. Nh4 Qe6 $17) 13... h5 $19) (12. Nc3 $5 {[%cal Re5e6]}) 12... Bxd6 {[%emt 0:00:08]} 13. Qh5+ {[%emt 0:04:10]} (13. Qxd6 Qxd6 14. exd6+ Kf7 $17) 13... Kd8 $1 {[%emt 0:00:07]} 14. exd6 {[%emt 0:00:20]} Nf6 {[%emt 0:00:07]} 15. Bg5 {[%emt 0:03:43]} (15. Qf7 Qxd6 16. Bd2 (16. Qxg7 $2 Rg8 $19) 16... Nc6 17. Bxc4 (17. Qxg7 $2 Rg8 $19) 17... bxc4 $17) ({Better is} 15. Qg5 $14) 15... Kc8 {[%emt 0:07:45]} 16. Qh3 {[%emt 0:10:34]} Ne4 {[%emt 0:09:19]} (16... Nxb3 $2 17. axb3 cxb3 18. cxb3 $18) 17. Be3 $1 {[%emt 0:00:16]} Qxd6 {[%emt 0:00:43]} 18. f3 $1 {[%emt 0:03:42]} Nf6 {[%emt 0:02:11]} (18... cxb3 19. axb3 Nf6 20. Rxa5 $11) 19. Nc3 {[%emt 0:00:44]} Re8 {[%emt 0:00:57]} 20. Rad1 {[%emt 0:01:39]} Qc7 {[%emt 0:01:49]} 21. Bf2 {[%emt 0:11:10]} Rxe1+ {[%emt 0:02:24]} 22. Rxe1 {[%emt 0:00:57]} Bc6 $1 {[%emt 0:00:44]} 23. Bg3 {[%emt 0:01:02]} Qb6+ {[%emt 0:10:03]} 24. Bf2 {[%emt 0:00:04]} Qc7 {[%emt 0:01:27]} 25. Bg3 {[%emt 0:00:32]} Qd8 {[%emt 0:00:07]} 26. Qf5 {[%emt 0:02:01]} Kb7 {[%emt 0:02:21]} 27. Qg5 {[%emt 0:04:41]} Rc8 {[%emt 0:09:07]} 28. Bf2 {[%emt 0:03:25]} Nd5 {[%emt 0:02:01]} 29. Qe5 {[%emt 0:01:09]} (29. Qxd8 Rxd8 30. Ne4 d6 $17) 29... Qf6 {[%emt 0:18:33]} 30. Nxd5 {[%emt 0:00:07]} (30. Qe2 {seems wilder.} Nxc3 31. Qe3 Rf8 32. Qb6+) 30... Qxe5 {[%emt 0:00:07]} 31. Rxe5 {[%emt 0:00:03]} cxb3 {[%emt 0:00:31]} 32. axb3 {[%emt 0:00:55]} Bxd5 {[%emt 0:01:30]} 33. Rxd5 {[%emt 0:01:57]} Rxc2 {[%emt 0:00:07]} 34. h4 {[%emt 0:00:35]} Kc6 {[%emt 0:02:10]} (34... Nxb3 $11 35. Rxd7+ Rc7) 35. Rg5 {[%emt 0:00:01]} (35. Rh5 $1 $14) 35... Nxb3 {[%emt 0:00:58]} (35... g6 $11 36. b4 Nb3) 36. Rxg7 $14 {[%emt 0:00:07]} d5 {[%emt 0:00:06]} (36... Rc1+ $11 37. Kh2 Rc2) 37. Rxh7 {[%emt 0:01:24]} d4 {[%emt 0:00:01]} 38. Rh6+ {[%emt 0:00:56]} (38. Bg3 $1 $16 {Black must now prevent Rc7+.} d3 39. Rc7+ Kd5 40. Rd7+ Kc4 41. Rc7+ Kd5 42. Rd7+ Kc4 43. Rc7+ Kd5) 38... Kd5 $14 {[%emt 0:01:01]} 39. Rh8 {[%emt 0:01:33]} (39. Rxa6 $6 d3 40. Be3 Rxb2 $11) (39. Bg3 $16) 39... d3 $11 {[%emt 0:03:05]} (39... Rxb2 40. h5 Ke6 41. h6 $16) 40. Rd8+ {[%emt 0:00:00]} Kc4 {[%emt 0:00:00]} 41. Be3 {[%emt 0:19:06]} Re2 $1 {[%emt 0:02:22]} (41... Rxb2 $2 42. h5 Re2 43. h6 $1 Rxe3 44. h7 Re1+ 45. Kh2 $18) (41... d2 $2 42. Kh2 $18 (42. Kf1 $2 Rc1+ 43. Kf2 d1=Q $19)) 42. Rc8+ {[%emt 0:02:18]} Kb4 {[%emt 0:00:51]} 43. Re8 $2 {[%emt 0:00:18] [#]} (43. Bf4 $11) 43... Rxb2 $2 {[%emt 0:04:33]} (43... Ka4 $1 $19 {And now ...b4 would win.} 44. Re4+ b4) 44. Rd8 $2 {[%emt 0:08:13][%mdl 8192] [#]} (44. h5 $17 {was forced.} d2 45. Bxd2+ Rxd2 46. h6) 44... Re2 $1 $19 {[%emt 0:00:44]} 45. Bg5 {[%emt 0:00:15]} ({Reject} 45. Rxd3 Kc4 46. Rd1 Rxe3 $19) 45... d2 {[%emt 0:01:07]} 46. Kh2 $2 {[%emt 0:00:26]} (46. h5 Re5 47. Bxd2+ Nxd2 48. Rxd2 Rxh5 49. g4) 46... Kc4 $19 {[%emt 0:01:01]} 47. Rc8+ {[%emt 0:00:38]} Kd3 {[%emt 0:01:19]} 48. Rd8+ {[%emt 0:00:17]} Kc4 {[%emt 0:07:42]} (48... Kc2 $142 49. Rc8+ Kb1) 49. Rc8+ $1 $19 {[%emt 0:00:19]} Nc5 {[%emt 0:00:54]} 50. Rd8 {[%emt 0:00:04]} Nd3 {[%emt 0:00:47]} 51. Bxd2 {[%emt 0:00:18]} Rxd2 {[%emt 0:00:02]} 52. h5 {[%emt 0:00:07]} Re2 {[%emt 0:00:47]} 53. h6 {[%emt 0:00:51]} Re6 {[%emt 0:01:55]} 54. Rh8 {[%emt 0:00:04]} b4 {[%emt 0:00:59]} 55. g4 {[%emt 0:00:04]} b3 {[%emt 0:02:55]} 56. Rc8+ {[%emt 0:00:26]} Nc5 {[%emt 0:00:59]} 0-1

[Event "LV Capablanca Memorial Elite 2022"]
[Site "La Habana"]
[Date "2022.04.21"]
[Round "3.3"]
[White "Almeida Quintana, Omar"]
[Black "Durarbayli, Vasif"]
[Result "1/2-1/2"]
[ECO "E65"]
[WhiteElo "2535"]
[BlackElo "2615"]
[Annotator "TA"]
[PlyCount "53"]
[EventDate "2022.04.20"]
[EventType "tourn"]
[EventCountry "CUB"]
[SourceTitle "playchess.com"]
[Source "ChessBase"]
[SourceQuality "1"]
[TimeControl "40/5400+30:1800+30"]

{[%evp 21,53,45,52,28,62,59,67,60,66,62,61,67,50,14,29,23,16,0,0,0,0,0,0,0,0,0,36,36,37,41,48,30,85,85]} 1. d4 {[%emt 0:05:11]} Nf6 {[%emt 0:00:09]} 2. Nf3 {[%emt 0:00:59]} g6 {[%emt 0:00:28]} 3. g3 {[%emt 0:03:17]} Bg7 {[%emt 0:03:07]} 4. Bg2 {[%emt 0:00:12]} O-O {[%emt 0:00:26]} 5. c4 {[%emt 0:01:23]} c5 {[%emt 0:00:50]} 6. O-O {[%emt 0:00:10]} cxd4 {[%emt 0:00:04]} 7. Nxd4 {[%emt 0:00:08]} Nc6 {[%emt 0:00:02]} 8. Nc3 {[%emt 0:00:14][%cal Bb1c3,Bc3d5,Bd5e7,Be7c6][%mdl 32]} d6 {[%emt 0:00:16]} 9. Nxc6 {[%emt 0:02:48]} bxc6 {[%emt 0:00:03]} 10. Bxc6 {[%emt 0:00:07]} Rb8 {[%emt 0:00:05]} 11. Bg2 {[%emt 0:00:07]} Qa5 {[%emt 0:00:05]} 12. Qd2 $1 {[%emt 0:01:55][%mdl 4] is currently scoring better than 12.Nb5. E65: King's Indian: Fianchetto: 6...c5 7 0-0 without d5 by White.} Ng4 {[%emt 0:07:19]} 13. Nd5 {[%emt 0:11:27]} Qxd2 {[%emt 0:01:28]} 14. Nxe7+ {[%emt 0:00:07] White is slightly better.} Kh8 {[%emt 0:00:03]} 15. Bxd2 {[%emt 0:00:08] Black must now prevent Rab1.} Rxb2 {[%emt 0:00:07]} 16. Bf4 {[%emt 0:13:49]} (16. Rad1 Be6 $11) 16... Be6 {[%emt 0:04:26] [#]} (16... Rxe2 $2 17. Nxc8 (17. Rae1 Rxe1 18. Rxe1 Bd4 $14) 17... Bxa1 18. Rxa1 (18. Bf3 Rxf2 19. Bxg4 Rxf1+ 20. Kxf1 f5 $19) 18... Rxc8 19. Bf3 Rxf2 20. Bxg4 Rxf4 21. Bxc8 $18 (21. gxf4 Rxc4 22. Rf1 Ra4 $16)) 17. Bd5 $146 {[%emt 0:02:57]} ({Predecessor:} 17. Bxd6 Bxc4 18. h3 Nf6 19. Rfc1 Bxe2 20. Nc8 Re8 21. Bf4 a6 22. Nd6 Rf8 23. Rab1 Rxa2 {1-0 (61) Kruk,G (1444)-Stasilo,T (1546) LSS email 2016}) 17... Ne5 {[%emt 0:03:04]} 18. Bxe5 {[%emt 0:20:03]} Bxe5 {[%emt 0:00:58]} 19. Nc6 {[%emt 0:00:05]} Bxd5 {[%emt 0:01:50]} 20. cxd5 {[%emt 0:00:24]} Rxe2 {[%emt 0:00:13]} 21. Rfe1 {[%emt 0:00:58]} Rd2 {[%emt 0:02:19]} 22. Red1 {[%emt 0:16:07]} Re2 {[%emt 0:12:53]} 23. Kf1 {[%emt 0:10:54]} Re4 {[%emt 0:00:06]} 24. Rab1 {[%emt 0:00:22]} Ra4 {[%emt 0:02:01]} 25. Rd2 {[%emt 0:00:23]} Kg7 {[%emt 0:06:42]} 26. Rb7 {[%emt 0:00:38]} a6 {[%emt 0:00:13]} (26... g5 $11) 27. f4 {[%emt 0:01:26] Weighted Error Value: White=0.07 (flawless) /Black=0.11 (very precise)} ({But not} 27. Nxe5 dxe5 28. Rd7 Kf6 $11) 1/2-1/2

[Event "LV Capablanca Memorial Elite 2022"]
[Site "La Habana"]
[Date "2022.04.21"]
[Round "3.4"]
[White "Niemann, Hans Moke"]
[Black "Mareco, Sandro"]
[Result "1-0"]
[ECO "E36"]
[WhiteElo "2642"]
[BlackElo "2643"]
[Annotator "TA"]
[PlyCount "51"]
[EventDate "2022.04.20"]
[EventType "tourn"]
[EventCountry "CUB"]
[SourceTitle "playchess.com"]
[Source "ChessBase"]
[SourceQuality "1"]
[TimeControl "40/5400+30:1800+30"]

{[%evp 12,51,27,30,27,24,27,27,35,-1308,102,0,38,22,39,0,0,12,11,0,0,0,0,0,21,20,35,25,128,66,116,123,225,204,199,204,197,198,194,200,193,190]} 1. d4 {[%emt 0:00:45]} Nf6 {[%emt 0:00:04]} 2. c4 {[%emt 0:00:43]} e6 {[%emt 0:00:04]} 3. Nc3 {[%emt 0:01:07]} Bb4 {[%emt 0:00:07]} 4. Qc2 {[%emt 0:01:42]} d5 {[%emt 0:01:35]} 5. a3 {[%emt 0:01:17]} Bxc3+ {[%emt 0:00:08]} 6. Qxc3 {[%emt 0:00:09]} dxc4 {[%emt 0:00:04]} 7. Qxc4 {[%emt 0:00:46]} b6 {[%emt 0:01:37] E36: Nimzo-Indian: Classical: 4...d5 5 a3.} 8. Bf4 {[%emt 0:04:34]} Ba6 {[%emt 0:00:05]} 9. Qxc7 {[%emt 0:01:19]} Qd5 {[%emt 0:00:30] White has an edge.} 10. Qc4 {[%emt 0:01:17][%mdl 8192]} Qd8 $2 (10... Qxc4 $19 11. Rd1 Qc2) 11. Qc7 {[%emt 0:00:00] &Bianco is more active.} (11. Qa4+ $16 Qd7 12. Qxd7+ Nbxd7 13. O-O-O) 11... Qd5 $14 {[%emt 0:00:33]} 12. Qd6 {[%emt 0:13:00]} ({Don't go for} 12. Bd6 $2 Nc6 13. Bb4 Rc8 $19) 12... Qa5+ {[%emt 0:00:06]} 13. Qb4 {[%emt 0:02:14] Hoping for Qxa5.} (13. b4 $5 {[%cal Rb4a5]} Qa4 14. f3 $11) 13... Nc6 {[%emt 0:00:04][%csl LRb4,LRd4][%mdl 64] Pin} 14. Qxa5 {[%emt 0:00:50]} Nxa5 {[%emt 0:00:03]} 15. O-O-O {[%emt 0:16:07][%cal Be1c1,Bc1b1,Bb1a1][%mdl 32] [#]} Bb5 $146 {[%emt 1:05:12]} ({Predecessor:} 15... Rc8+ 16. Kb1 Nb3 17. Nf3 Ne4 18. e3 Bb7 19. Bb5+ Ke7 20. Bg3 g5 21. Ba4 Bd5 22. Bxb3 Bxb3 23. Rc1 h5 {0-1 (53) Hilverda,A (2333)-Heimann,A (2490) Nuremberg 2012}) 16. e3 {[%emt 0:01:57]} Rc8+ {[%emt 0:00:21]} 17. Kb1 {[%emt 0:00:09]} Ba4 {[%emt 0:00:06] [#]} 18. Ba6 $1 {[%emt 0:06:36]} Bc2+ {[%emt 0:19:55]} 19. Ka1 {[%emt 0:00:22] Threatens to win with Re1.} Rc6 {[%emt 0:00:08] [#]} (19... Bxd1 $11 {keeps the balance.} 20. Bxc8 Nb3+ 21. Ka2 Nd2) 20. Ne2 {[%emt 0:04:14]} (20. Nf3 $1 $16) 20... Bxd1 {[%emt 0:06:41]} (20... Ba4 $14) 21. Rxd1 $16 {[%emt 0:00:08]} Ne4 {[%emt 0:02:46]} (21... Kd7 $16 22. Bb5 Ra8) 22. f3 {[%emt 0:06:15] White is clearly better.} Nd6 {[%emt 0:00:08]} 23. d5 {[%emt 0:00:59]} exd5 {[%emt 0:00:22]} 24. Nd4 {[%emt 0:00:12] Inhibits b5.} ({Don't play} 24. Rxd5 Nab7 $16) 24... Kd7 {[%emt 0:00:51]} 25. Nxc6 {[%emt 0:00:36]} Kxc6 {[%emt 0:00:05]} 26. e4 $1 {[%emt 0:01:45] Weighted Error Value: White=0.65/Black=0.55} 1-0

[Event "LV Capablanca Memorial Elite 2022"]
[Site "La Habana"]
[Date "2022.04.21"]
[Round "3.5"]
[White "Quesada Perez, Luis Ernesto"]
[Black "Ortiz Suarez, Isan Reynaldo"]
[Result "1/2-1/2"]
[ECO "B22"]
[WhiteElo "2517"]
[BlackElo "2531"]
[Annotator "TA"]
[PlyCount "96"]
[EventDate "2022.04.20"]
[EventType "tourn"]
[EventCountry "CUB"]
[SourceTitle "playchess.com"]
[Source "ChessBase"]
[SourceQuality "1"]
[TimeControl "40/5400+30:1800+30"]

{[%evp 22,96,20,13,0,6,17,20,17,-13,-11,-10,-7,-17,-5,-4,-6,-47,-12,-33,-27,-23,-15,-92,-95,-104,-104,-105,-106,-106,-106,-106,-106,-104,-106,-101,-102,-110,-47,-47,-47,-47,-47,-47,-41,-41,-41,-41,-41,-40,-40,-40,-40,-51,-51,-51,-51,-58,-58,-58,-58,-58,-58,-58,-58,-58,-54,-54,-54,-54,-54,-54,-54,-54,-54,-54,-54]} 1. e4 {[%emt 0:00:04][%cal Be2e4,Be4e5][%mdl 32]} c5 {[%emt 0:00:05]} 2. c3 {[%emt 0:00:11]} Nf6 {[%emt 0:00:19]} 3. e5 {[%emt 0:00:04]} Nd5 {[%emt 0:00:04]} 4. Bc4 {[%emt 0:00:12]} Nb6 {[%emt 0:02:03]} 5. Bb3 {[%emt 0:00:06]} d6 {[%emt 0:02:49]} 6. exd6 {[%emt 0:00:08]} Qxd6 {[%emt 0:00:34]} 7. Na3 {[%emt 0:00:11]} a6 {[%emt 0:10:44]} 8. Nf3 {[%emt 0:00:18]} Nc6 {[%emt 0:04:20]} 9. O-O {[%emt 0:00:35]} e6 {[%emt 0:10:38]} 10. d4 {[%emt 0:02:39]} cxd4 {[%emt 0:00:34]} 11. cxd4 {[%emt 0:13:27]} Be7 {[%emt 0:00:13]} 12. Be3 {[%emt 0:03:02]} O-O {[%emt 0:00:07] B22: Sicilian: 2 c3.} 13. Ne5 {[%emt 0:01:40]} Nd5 {[%emt 0:23:12]} 14. Nac4 {[%emt 0:00:50]} Qd8 {[%emt 0:01:33] [#] The position is equal.} 15. Qf3 $146 {[%emt 0:27:39]} ({Predecessor:} 15. Nxc6 bxc6 16. Ne5 Bb7 17. Rc1 Rc8 18. Qd3 Bd6 19. Ba4 Nxe3 20. Qxe3 Qa5 21. Nc4 {½-½ (83) Pirrot,D (2450)-Fridman,R (2378) Germany 2002}) 15... Bd7 {[%emt 0:01:00]} 16. Nxd7 {[%emt 0:04:02]} Qxd7 {[%emt 0:00:07]} 17. Rfd1 {[%emt 0:02:12]} Rfd8 {[%emt 0:03:53]} 18. g3 {[%emt 0:12:19]} Rac8 {[%emt 0:04:06]} 19. h4 {[%emt 0:01:29]} Bf6 {[%emt 0:11:24]} 20. Qe4 {[%emt 0:00:08]} (20. Ne5 $5 Bxe5 21. dxe5 $11) 20... Qe7 {[%emt 0:00:48]} 21. Rac1 {[%emt 0:03:25]} Rc7 {[%emt 0:02:20]} 22. Ne5 {[%emt 0:06:59]} (22. a3 $11 {keeps the balance.}) 22... Nxe3 $17 {[%emt 0:01:27]} 23. Qxe3 {[%emt 0:10:50] [#]} Nxd4 $1 {[%emt 0:02:22][%mdl 512]} 24. Rxc7 {[%emt 0:00:30]} Qxc7 {[%emt 0:00:02]} 25. Rxd4 {[%emt 0:00:17]} Rxd4 {[%emt 0:00:03]} 26. Qxd4 {[%emt 0:00:06] Black must now prevent f4.} Bxe5 {[%emt 0:08:43]} 27. Qd2 {[%emt 0:00:05]} g6 {[%emt 0:00:45]} 28. h5 {[%emt 0:03:51]} Qb6 {[%emt 0:02:23]} 29. Qd7 {[%emt 0:03:27]} gxh5 {[%emt 0:02:24]} ({Much less strong is} 29... Bxg3 30. Qc8+ Kg7 31. Qc3+ Kg8 32. Qxg3 $16) (29... Bd4 $17 30. Kg2 Bc5) 30. Bd1 $1 $15 {[%emt 0:00:03] Black is slightly better.} Qc7 {[%emt 0:05:36]} ({Don't take} 30... Bxg3 31. Qc8+ Kg7 32. Qc3+ Kf8 33. Qxg3 $14) 31. Qxc7 {[%emt 0:00:17]} Bxc7 {[%emt 0:00:02]} 32. Bxh5 {[%emt 0:00:08][%mdl 4096] Endgame KB-KB} Be5 {[%emt 0:00:36]} 33. Bf3 {[%emt 0:00:20]} b6 {[%emt 0:00:23]} 34. b4 {[%emt 0:00:29]} Bc3 {[%emt 0:00:26]} 35. Bb7 {[%emt 0:00:06]} Bxb4 {[%emt 0:00:36]} 36. Bxa6 {[%emt 0:00:05]} Kg7 {[%emt 0:00:04]} 37. g4 {[%emt 0:01:15]} Kf6 {[%emt 0:00:22]} 38. Kg2 {[%emt 0:00:18]} Kg5 {[%emt 0:00:06]} 39. f3 {[%emt 0:00:39]} Kf4 {[%emt 0:00:47]} 40. Bb7 {[%emt 0:00:00]} Ba3 {[%emt 0:00:00]} 41. Bc6 {[%emt 0:00:36]} f5 {[%emt 0:01:15]} 42. gxf5 {[%emt 0:00:28]} exf5 {[%emt 0:00:07]} 43. Bb7 {[%emt 0:00:09]} b5 {[%emt 0:00:04][%cal Bb6b5,Bb5b4][%mdl 32]} 44. Bc6 {[%emt 0:00:08]} b4 $1 {[%emt 0:00:03]} 45. Bb7 {[%emt 0:00:10]} Bb2 {[%emt 0:00:05]} 46. Bc6 {[%emt 0:00:10]} h5 {[%emt 0:00:14][%cal Bh7h5,Bh5h4][%mdl 32]} 47. Bb7 {[%emt 0:00:08]} h4 {[%emt 0:00:24]} 48. Bc6 {[%emt 0:00:06]} Bc3 {[%emt 0:00:21] Weighted Error Value: White=0.07 (flawless) /Black=0.03 (flawless)} 1/2-1/2